Cogmind - Beta 10.2 @@@ ROGUE MODE // 2021.02.17 @ 11:22:55 Player: Cmdr.Laserstrahl Result: Destroyed by as-29257 with Assembled Blade Performance ------------- Evolutions (1) 500 Regions Visited (3) 600 Robots Destroyed (16) 80 Value Destroyed (483) 483 Prototype IDs (2) 40 Alien Tech Used (0) 0 Bonus (0) 0 TOTAL SCORE: 1703 Bonus ------- None Cogmind --------- Core Integrity 0/400 Matter 264/300 Energy 100/100 System Corruption 2% Temperature Cool (12) Movement Core (50) Location -9/Mines Parts ------- > --- POWER (1) -------- (None) > --- PROPULSION (2) --- (None) > --- UTILITY (4) ------ Signal Interpreter > --- WEAPON (2) ------- (None) > --- INVENTORY (4) ---- Core Shielding Light Armor Plating Beam Rifle Heavy Assault Rifle Peak State ------------ > --- POWER ------------ Ion Engine > --- PROPULSION ------- Wheel Wheel > --- UTILITY ---------- Small Storage Unit Signal Interpreter Core Shielding > --- WEAPON ----------- Assault Rifle Autogun > --- INVENTORY -------- Ion Engine ECM Suite Core Shielding EM Pulse Gun EM Pulse Gun [Rating: 9] Favorites ----------- Power Ion Engine Engine Ion Engine Propulsion Wheel Treads Light Treads Wheel Wheel Utility Small Storage Unit Device ECM Suite Storage Small Storage Unit Processor Signal Interpreter Protection Core Shielding Weapon Assault Rifle Energy Gun EM Pulse Gun Ballistic Gun Assault Rifle Build | -11 -10 -9 -9 ------- Run | Scr Mat Mat Min Slots Evolved 2 | . . 2 . Power . | . . . . Propulsion . | . . . . Utility 2 | . . 2 . Weapon . | . . . . Parts Attached 20 | 5 6 9 . Power 3 | 1 1 1 . Engine 3 | 1 1 1 . Core . | . . . . Reactor . | . . . . Propulsion 4 | 2 . 2 . Treads 2 | . . 2 . Leg . | . . . . Wheel 2 | 2 . . . Hover . | . . . . Flight . | . . . . Utility 6 | 1 2 3 . Device 1 | . . 1 . Storage 1 | 1 . . . Processor 2 | . 2 . . Hackware . | . . . . Protection 2 | . . 2 . Artifact . | . . . . Weapon 7 | 1 3 3 . Energy Gun 2 | . . 2 . Energy Cannon . | . . . . Ballistic Gun 5 | 1 3 1 . Ballistic Cannon . | . . . . Launcher . | . . . . Special Weapon . | . . . . Impact Weapon . | . . . . Slashing Weapon . | . . . . Piercing Weapon . | . . . . Special Melee Weapon . | . . . . Unidentified Prototypes . | . . . . Parts Lost 12 | . . 7 5 Power 2 | . . 1 1 Propulsion 4 | . . 3 1 Utility 3 | . . . 3 Weapon 3 | . . 3 . Highest Loss Streak 7 | . . 3 7 Average Slot Usage (%) 86 | . 97 75 55 Engine 11 | . 14 9 11 Treads 2 | . . 5 . Wheel 18 | . 28 7 . Device 1 | . . 1 11 Storage 12 | . 14 11 11 Processor 11 | . 11 11 11 Protection 5 | . . 12 11 Energy Gun 2 | . . 5 . Ballistic Gun 19 | . 28 10 . Naked Turns . | . . . . Heaviest Build 15 | 9 13 15 11 Greatest Support 40 | 20 20 40 20 Greatest Overweight (x) 4 | . . 4 3 Average Overweight (x) . | . . . 1 Largest Inventory Capacity 6 | 6 6 6 6 Average Capacity 5 | 5 6 6 5 Most Carried 6 | 3 6 6 4 Average Carried 4 | 1 5 3 4 Final Capacity 6 | 6 6 6 4 Final Carried 6 | 3 6 4 4 Class Distribution -------------------- 89% | Mutant 10% | Scavenger-Mutant Dominant Class ---------------- Mutant | -10/Materials Mutant | -9/Materials Mutant | -9/Mines Resources | -11 -10 -9 -9 ----------- Run | Scr Mat Mat Min Matter Collected 515 | 169 253 93 . Remotely . | . . . . Salvage Created 550 | . 307 243 . Parts 28 | . 12 16 . Haulers Intercepted . | . . . . Recyclers Shooed 3 | . 1 2 . Parts Field Recycled . | . . . . Retrieved Matter . | . . . . Parts Self-Destructed . | . . . . Prevented . | . . . . Kills | -11 -10 -9 -9 ------- Run | Scr Mat Mat Min Combat Hostiles Destroyed 13 | . 5 8 . Guns 12 | . 5 7 . AOE 1 | . . 1 . Classes Destroyed 6 | . 4 2 . Tunneler 1 | . 1 . . Recycler 1 | . 1 . . Watcher 1 | . 1 . . Swarmer 4 | . . 4 . Grunt 7 | . 5 2 . Sentry 2 | . . 2 . Best Kill Streak 6 | . 6 4 . Combat Bots Only 4 | . 3 4 . Max Kills in Single Turn 2 | . 2 2 . Gunslinging 1 | . . 1 . Exploded 1 | . . 1 . Melee . | . . . . Uniques/NPCs Destroyed . | . . . . Combat | -11 -10 -9 -9 -------- Run | Scr Mat Mat Min Damage Taken 1503 | . 200 865 438 Core 419 | . 19 132 268 Absorbed by Shields . | . . . . Core Remaining (%) 96 | 100 92 . . Volleys Fired 48 | . 23 25 . Largest 2 | . 2 2 . Hottest 80 | . 40 80 . Shots Fired 91 | . 46 45 . Gun 91 | . 46 45 . Cannon . | . . . . Launcher . | . . . . Special . | . . . . Kinetic 76 | . 46 30 . Thermal . | . . . . Explosive . | . . . . Electromagnetic 15 | . . 15 . Robot Hit Streak 12 | . 6 12 . Robot Miss Streak 5 | . 3 5 . Penetration Max . | . . . . Secondary Targets 4 | . 1 3 . Max Gunslinging Chain 1 | . 1 1 . Shots Hit Robots 54 | . 29 25 . Core Hits 27 | . 16 11 . Critical Hits 1 | . 1 . . Critical Kills 1 | . 1 . . Critical Parts Destroyed . | . . . . Melee Attacks . | . . . . Impact . | . . . . Slashing . | . . . . Piercing . | . . . . Sneak Attacks . | . . . . Combat Hostiles . | . . . . Follow-up Attacks . | . . . . Damage Inflicted 1192 | . 621 566 5 Guns 699 | . 348 351 . Cannons . | . . . . Explosions 488 | . 273 215 . Melee . | . . . . Ramming 5 | . . . 5 Kinetic 545 | . 348 197 . Thermal 215 | . . 215 . Explosive 273 | . 273 . . Electromagnetic 154 | . . 154 . Impact . | . . . . Slashing . | . . . . Piercing . | . . . . Highest Corruption 2 | . . . 2 Average Corruption 2 | . . . 2 Corruption Purged . | . . . . Overload Shots . | . . . . Overflow Damage 113 | . 46 67 . Projectiles . | . . . . Explosions 113 | . 46 67 . Melee . | . . . . Knockbacks . | . . . . Impact . | . . . . Kinetic . | . . . . Secondary . | . . . . Self-Inflicted Damage 2 | . . . 2 Shots . | . . . . Rammed 4 | . . . 4 Targets Rammed 4 | . . . 4 Kicked . | . . . . Crushed . | . . . . Highest Temperature 24 | . 6 24 12 Average Temperature 9 | . 2 15 12 Received Heat Transfer 492 | . 108 282 102 Siege Activations . | . . . . Robots Corrupted . | . . . . Combat Hostiles . | . . . . Parts Fried . | . . . . Impact Corruptions . | . . . . Robots Melted . | . . . . Combat Hostiles . | . . . . Parts Melted 1 | . . 1 . Heat Transferred 150 | . . 150 . Parts Sabotaged . | . . . . Parts Stolen . | . . . . Parts Stripped . | . . . . Power Chain Reactions 1 | . . 1 . Missiles Intercepted . | . . . . Alert | -11 -10 -9 -9 ------- Run | Scr Mat Mat Min Peak Influence 357 | . 197 357 159 Initial 139 | . . 83 139 Average 129 | . 89 201 144 Maximum Alert Level 1 | . . 1 . Low Security (%) 84 | 100 100 60 100 Level 1 15 | . . 39 . Level 2 . | . . . . Level 3 . | . . . . Level 4 . | . . . . Level 5 . | . . . . High Security . | . . . . Max Security . | . . . . Squads Dispatched 4 | . . 4 . Investigation 1 | . . 1 . Extermination . | . . . . Reinforcement 3 | . . 3 . Assault . | . . . . Garrison . | . . . . Intercept . | . . . . Construction Impeded . | . . . . Haulers Reinforced . | . . . . Stealth | -11 -10 -9 -9 --------- Run | Scr Mat Mat Min Distress Signals 2 | . . 2 . Communications Jammed . | . . . . Distress Signals . | . . . . Times Spotted 52 | . 11 18 23 Peak Tracking Total 23 | . 3 5 23 Tactical Retreats 2 | . . 2 . Traps | -11 -10 -9 -9 ------- Run | Scr Mat Mat Min Traps Triggered . | . . . . Indirectly . | . . . . Trap Hack Attempts . | . . . . Triggered . | . . . . Disarmed . | . . . . Reprogrammed 2 | . 2 . . Reused . | . . . . Traps Extracted . | . . . . Installed . | . . . . Triggered . | . . . . Machines | -11 -10 -9 -9 ---------- Run | Scr Mat Mat Min Machines Disabled 6 | . 4 2 . Max in Single Turn 3 | . 3 2 . Machines Sabotaged . | . . . . Garrisons Compromised . | . . . . Overloaded Fab Kills . | . . . . Fab Network Shutdowns . | . . . . Hacking | -11 -10 -9 -9 --------- Run | Scr Mat Mat Min Machines Accessed 5 | . 3 2 . Terminals 4 | . 3 1 . Fabricators . | . . . . Repair Stations . | . . . . Recycling Units . | . . . . Scanalyzers 1 | . . 1 . Garrison Access . | . . . . Total Hacks 14 | . 9 5 . Successful 11 | . 7 4 . Failed 3 | . 2 1 . Catastrophic . | . . . . Database Lockouts . | . . . . Manual . | . . . . Terminals 10 | . 9 1 . Fabricators . | . . . . Repair Stations . | . . . . Recycling Units . | . . . . Scanalyzers 4 | . . 4 . Garrison Access . | . . . . Terminal Hacks 7 | . 7 . . Prototype ID Bank 1 | . 1 . . Locate Traps 2 | . 2 . . Reprogram Traps 1 | . 1 . . Hauler Manifests 1 | . 1 . . Zone Layout 2 | . 2 . . Fabricator Hacks . | . . . . Repair Station Hacks . | . . . . Recycling Unit Hacks . | . . . . Scanalyzer 4 | . . 4 . Insert Component 2 | . . 2 . Analyze 2 | . . 2 . Garrison Access Hacks . | . . . . Unauthorized Hacks . | . . . . Terminals . | . . . . Fabricators . | . . . . Repair Stations . | . . . . Recycling Units . | . . . . Scanalyzers . | . . . . Garrison Access . | . . . . Data Cores Recovered . | . . . . Used . | . . . . Hacking Detections 3 | . 2 1 . Full Trace Events . | . . . . Feedback Events . | . . . . Feedback Blocked . | . . . . Robot Schematics Acquired . | . . . . Robots Built . | . . . . Matter . | . . . . Time . | . . . . Total Robot Build Rating . | . . . . Part Schematics Acquired 2 | . . 2 . Parts Built . | . . . . Matter . | . . . . Time . | . . . . Total Part Build Rating . | . . . . Parts Repaired . | . . . . Time . | . . . . Parts Recycled . | . . . . Recycled Matter . | . . . . Retrieved Matter . | . . . . Retrieved Components . | . . . . Parts Scanalyzed 2 | . . 2 . Part Schematics Acquired 2 | . . 2 . Parts Damaged . | . . . . Bothacking | -11 -10 -9 -9 ------------ Run | Scr Mat Mat Min Used RIF Installer . | . . . . Robots Hacked . | . . . . Non-combat . | . . . . Combat . | . . . . Robot Hacks Applied . | . . . . Relay Couplers Released . | . . . . Robots Rewired . | . . . . Allies Hacked . | . . . . Hacks Repelled . | . . . . Allies | -11 -10 -9 -9 -------- Run | Scr Mat Mat Min Total Allies . | . . . . Largest Group . | . . . . Highest-Rated Group . | . . . . Highest-Rated Ally . | . . . . Total Orders . | . . . . Ally Attacks . | . . . . Total Damage . | . . . . Kills . | . . . . Allies Corrupted . | . . . . Allies Melted . | . . . . Intel | -11 -10 -9 -9 ------- Run | Scr Mat Mat Min Robot Analysis Total . | . . . . Derelict Logs Recovered . | . . . . Drone Launches . | . . . . Drone Recoveries . | . . . . Exploration | -11 -10 -9 -9 ------------- Run | Scr Mat Mat Min Turns Passed 686 | 42 356 271 17 Spaces Moved 543 | 41 334 161 7 Core 40 | 12 . 23 5 Treads 46 | . . 44 2 Legs . | . . . . Wheels 457 | 29 334 94 . Hover . | . . . . Flight . | . . . . Fastest Speed 50 | 50 80 80 100 Average Speed 91 | 71 80 116 174 Slowest Speed 250 | 80 80 250 200 Overloaded Moves . | . . . . Propulsion Burnouts . | . . . . Robots Hopped . | . . . . Cave-ins Triggered . | . . . . Exploration Rate (%) 26 | 3 63 26 13 Regions Visited 3 Branch Regions 1 Pre-discovered Areas . | . . . . Known Exits Taken 2 | . 1 1 . Unknown Exits Taken 1 | 1 . . . Scrap Searched . | . . . . Spaces Dug . | . . . . Terrain Destroyed 75 | . 28 47 . Melee . | . . . . Projectile . | . . . . AOE 75 | . 28 47 . Terrain Rammed . | . . . . Walls Destroyed . | . . . . Machines Disabled . | . . . . Actions | -11 -10 -9 -9 --------- Run | Scr Mat Mat Min Total 646 | 53 380 202 11 Wait . | . . . . Move 540 | 40 333 160 7 Hop . | . . . . Pick Up 25 | 8 11 6 . Fast Attach 1 | . 1 . . Attach 15 | 5 3 7 . Detach . | . . . . Swap 4 | . 2 2 . Drop 9 | . 7 2 . Fire 48 | . 23 25 . Melee . | . . . . Ram 4 | . . . 4 Kick . | . . . . Crush . | . . . . Escape Stasis . | . . . . Rewire . | . . . . Trap . | . . . . Miscellaneous . | . . . . Route ------- -11/Scrapyard -10/Materials (discovered 2 exits: *Mat x2) -9/Materials -9/Mines History --------- Turn | Location | Event 5 | -11/Scrapyard | Discovered new exit (range 16) 43 | -11/Scrapyard | Entered Materials 100 | -10/Materials | Discovered new exit (range 15) 360 | -10/Materials | Build established: Mutant 365 | -10/Materials | Discovered new exit (range 4) 399 | -10/Materials | Identified exit to Materials 399 | -10/Materials | Entered another Materials area 399 | -9/Materials | Evolved 2 slots: Utility x2 558 | -9/Materials | Lost 3 parts (1p1n1w) 653 | -9/Materials | Discovered new exit (range 11) 668 | -9/Materials | Identified exit to Mines 670 | -9/Materials | Entered Mines 671 | -9/Mines | Assembled infested the area 681 | -9/Mines | Core integrity fell below 50% 687 | -9/Mines | Core integrity fell below 20% 687 | -9/Mines | Destroyed by as-29257 with Assembled Blade Last Messages --------------- 00654_ Acquired Beam Rifle. 00664_ Lgt. Treads destroyed. 00668_ EXIT=IDENTIFIED: MINES LOCATION=MINES GOAL=ESCAPE Something is scanning the area. 00671_ ALERT: Infestation in the mines, dispatching Demolisher response squad. 00672_ Lgt. Treads destroyed. 00681_ Core Shielding destroyed. 00682_ Slammed into as-94825. 00682_ Ion Engine destroyed. 00685_ Slammed into as-39430. 00685_ Destabilizing: System corrupted (+2). 00685_ ECM Suite destroyed. 00686_ L-31 Rogue destroyed. 00686_ Sml. Storage Unit destroyed. 00686_ Slammed into as-29257. 00687_ Slammed into as-33136. 00687_ Destabilizing: Core damaged (-4). Map ----- +----------------------------------------------------+ | | | | | ????????????????????????????????????????????????? | | ????????????????????????????????????????????????? | | ????????????????????????????????????????????????? | | ????????????????????????????????????????????????? | | ????????????????????????????????????????????????? | | ????????????????????????????????????????????????? | | ????????????????????????????????????????????????? | | ????????????????????????????????????????????????? | | ????????????????????????????????????????????????? | | ?????????????????????#??????????????????????????? | | ?????????????????? #?????????????????????????? | | ?????????????????# ?????????????????????????? | | ?????????????????# #????????????????????????? | | ?????????????????? ????????????????????????? | | ??????????????????# ????????????????????????? | | ??????????????????# #???????????????????????? | | ???????????? ???## ###????????????????????? | | ???????????? ### ##???????????????????? | | ???????????? #???????????????????? | | ??????????? < ##??????????????????? | | ??????????? #??????????????????? | | ???????????? #??????????????????? | | ???????????????# aa #???????????????????? | | ????????????????# a aa@a#????????????????????? | | ????????????????# aaa######????????????????? | | ????????????????# aaa / #????????????????? | | ????????????????## aa a *%!#????????????????? | | ?????????????????#### a##### ######???????????? | | ????????????????????## #???# #???????????? | | ?????????????????????###????# #???????????? | | ????????????????????????????# #???????????? | | ????????????????????????????# ####????????? | | ????????????????????????????# #???????? | | ????????????????????????????# ### #???????? | | ????????????????????????????#########???????????? | | ????????????????????????????????????????????????? | | ????????????????????????????????????????????????? | | ????????????????????????????????????????????????? | | ????????????????????????????????????????????????? | | ????????????????????????????????????????????????? | | ????????????????????????????????????????????????? | | ????????????????????????????????????????????????? | | ????????????????????????????????????????????????? | | ????????????????????????????????????????????????? | | ????????????????????????????????????????????????? | | ????????????????????????????????????????????????? | | ????????????????????????????????????????????????? | | ????????????????????????????????????????????????? | +----------------------------------------------------+ Best States ------------- Heat Dissipation 28 Energy Generation 10 Energy Capacity 250 Matter Stores 300 Matter Capacity 300 Sight Range 16 Terrain Scan Density 10 ECM Strength 1 Armor Coverage 150 Core Shielding 20 Evasion (%) 50 Targeting Accuracy 5 Recoil Reduction 2 Item Schematics ----------------- Core Shielding | -9/Materials | Scanalyzed ECM Suite | -9/Materials | Scanalyzed Robot Schematics ------------------ None Fabricated ------------ Nothing Alien Tech Used ----------------- None Achievements -------------- None Challenges ------------ None Game ------ Seed OverloadHelicalDetonator Manual? 0 Play Time 01:54:45 Cumulative 65.0 hours Start 2021.02.16 @ 07:40:52 End 2021.02.17 @ 11:22:55 Sessions 3 Manual Loads 0 Difficulty Rogue Special Mode None Game No. 28 Rogue 25 Adventurer 3 Explorer 0 Win Type - Total 0 Types 0/0/0/0/0/0/0/0/0 Lore% 15 Gallery% 36 Achievement% 24 Wizard Run 0 Options --------- ASCII 0 Keyboard 0 Movement Mouse Keybinds 0 Fullscreen 1 Font 18/SmallcapsGlow Map View 76x50 Tactical HUD 1 Map Filters NONE Filters NONE Steam X RUN: e7e48516-5dbb-4afc-8ac8-47c6b39ca082